[Event "Titled Tuesday Blitz June 13 Early 2023"]
[White "Henriquez Villagra, Cristobal"]
[Black "Fiorito, Joaquin"]
[WhiteFideId "3409350"]
[BlackFideId "180173"]
[WhiteElo "2542"]
[BlackElo "2199"]
[Result "1-0"]
[Round "2"]
[TimeControl "180+2"]
[Date "2023.06.13"]
[WhiteClock "0:00:53"]
[BlackClock "0:00:00"]
[Board "19"]

1. g3 {[%clk 0:03:00]}  d5 {[%clk 0:02:59]} 2. Bg2 {[%clk 0:03:01]}  Nf6 {[%clk 0:03:00]} 3. f4 {[%clk 0:02:59]}  c5 {[%clk 0:02:57]} 4. Nf3 {[%clk 0:02:59]}  Nc6 {[%clk 0:02:58]} 5. O-O {[%clk 0:03:00]}  Bf5 {[%clk 0:02:59]} 6. d3 {[%clk 0:02:59]}  h6 {[%clk 0:02:58]} 7. Ne5 {[%clk 0:02:45]}  Rc8 {[%clk 0:02:50]} 8. Nd2 {[%clk 0:02:30]}  e6 {[%clk 0:02:50]} 9. Nxc6 {[%clk 0:02:10]}  Rxc6 {[%clk 0:02:51]} 10. e4 {[%clk 0:02:08]}  dxe4 {[%clk 0:01:29]} 11. dxe4 {[%clk 0:02:09]}  Qd4+ {[%clk 0:01:29]} 12. Kh1 {[%clk 0:02:08]}  Nxe4 {[%clk 0:01:27]} 13. Qe2 {[%clk 0:02:04]}  Nxd2 {[%clk 0:01:26]} 14. Bxd2 {[%clk 0:02:00]}  Rb6 {[%clk 0:01:14]} 15. Bc3 {[%clk 0:01:59]}  Qa4 {[%clk 0:01:14]} 16. Rad1 {[%clk 0:01:30]}  Be7 {[%clk 0:00:59]} 17. g4 {[%clk 0:01:22]}  Bxc2 {[%clk 0:00:26]} 18. Rd2 {[%clk 0:01:22]}  Bh7 {[%clk 0:00:00]} 19. Qe5 {[%clk 0:00:53]} 1-0


[Site "https://www.chess.com"]

[Event "Titled Tuesday Blitz June 13 Early 2023"]
[White "Altman, Joshua"]
[Black "Bortnyk, Olexandr"]
[WhiteFideId "426210"]
[BlackFideId "14120828"]
[WhiteElo "2028"]
[BlackElo "2733"]
[Result "0-1"]
[Round "2"]
[TimeControl "180+2"]
[Date "2023.06.13"]
[WhiteClock "0:00:18"]
[BlackClock "0:00:11"]
[Board "20"]

1. d4 {[%clk 0:03:00]}  d6 {[%clk 0:02:59]} 2. Nf3 {[%clk 0:03:00]}  Nf6 {[%clk 0:02:58]} 3. c4 {[%clk 0:03:01]}  g6 {[%clk 0:02:59]} 4. Nc3 {[%clk 0:03:01]}  Bf5 {[%clk 0:02:58]} 5. Bg5 {[%clk 0:03:01]}  Bg7 {[%clk 0:02:58]} 6. e3 {[%clk 0:03:01]}  O-O {[%clk 0:02:57]} 7. Bd3 {[%clk 0:03:01]}  Bxd3 {[%clk 0:02:57]} 8. Qxd3 {[%clk 0:03:02]}  c6 {[%clk 0:02:56]} 9. O-O {[%clk 0:03:02]}  Nbd7 {[%clk 0:02:56]} 10. h3 {[%clk 0:03:02]}  Re8 {[%clk 0:02:55]} 11. Rfd1 {[%clk 0:03:02]}  a5 {[%clk 0:02:54]} 12. Rac1 {[%clk 0:03:02]}  a4 {[%clk 0:02:54]} 13. a3 {[%clk 0:02:59]}  Qa5 {[%clk 0:02:47]} 14. Bh4 {[%clk 0:03:00]}  e5 {[%clk 0:02:46]} 15. dxe5 {[%clk 0:02:50]}  dxe5 {[%clk 0:02:45]} 16. Nd2 {[%clk 0:02:47]}  Nc5 {[%clk 0:02:34]} 17. Qc2 {[%clk 0:02:46]}  Rad8 {[%clk 0:02:22]} 18. Nce4 {[%clk 0:02:34]}  Ncxe4 {[%clk 0:02:11]} 19. Nxe4 {[%clk 0:02:34]}  Rxd1+ {[%clk 0:02:12]} 20. Rxd1 {[%clk 0:02:32]}  Nxe4 {[%clk 0:02:12]} 21. Qxe4 {[%clk 0:02:32]}  Qb6 {[%clk 0:01:58]} 22. Qc2 {[%clk 0:02:31]}  e4 {[%clk 0:01:57]} 23. Qxa4 {[%clk 0:02:29]}  Qxb2 {[%clk 0:01:52]} 24. Rd7 {[%clk 0:02:23]}  Be5 {[%clk 0:01:47]} 25. Bg3 {[%clk 0:02:03]}  Bxg3 {[%clk 0:01:43]} 26. fxg3 {[%clk 0:02:04]}  Qc1+ {[%clk 0:01:40]} 27. Kf2 {[%clk 0:01:59]}  Re6 {[%clk 0:01:38]} 28. Rd1 {[%clk 0:01:44]}  Rf6+ {[%clk 0:01:37]} 29. Kg1 {[%clk 0:01:44]}  Qxe3+ {[%clk 0:01:37]} 30. Kh2 {[%clk 0:01:45]}  Kg7 {[%clk 0:01:28]} 31. Qb4 {[%clk 0:01:42]}  b6 {[%clk 0:01:23]} 32. Qb2 {[%clk 0:01:38]}  Qf2 {[%clk 0:01:05]} 33. Qe5 {[%clk 0:01:37]}  Qf5 {[%clk 0:00:41]} 34. Qb8 {[%clk 0:01:22]}  Re6 {[%clk 0:00:33]} 35. Rd8 {[%clk 0:01:09]}  e3 {[%clk 0:00:24]} 36. Rg8+ {[%clk 0:00:53]}  Kh6 {[%clk 0:00:24]} 37. Qf8+ {[%clk 0:00:52]}  Kg5 {[%clk 0:00:25]} 38. h4+ {[%clk 0:00:46]}  Kg4 {[%clk 0:00:25]} 39. Qb4 {[%clk 0:00:24]}  e2 {[%clk 0:00:22]} 40. c5+ {[%clk 0:00:21]}  Re4 {[%clk 0:00:21]} 41. Qe1 {[%clk 0:00:21]}  Qf1 {[%clk 0:00:20]} 42. Qd2 {[%clk 0:00:19]}  h6 {[%clk 0:00:09]} 43. Qxh6 {[%clk 0:00:18]}  Qg1+ {[%clk 0:00:09]} 44. Kxg1 {[%clk 0:00:17]}  e1=Q+ {[%clk 0:00:09]} 45. Kh2 {[%clk 0:00:18]}  Qxg3+ {[%clk 0:00:10]} 46. Kh1 {[%clk 0:00:18]}  Re1# {[%clk 0:00:11]} 0-1


[Site "https://www.chess.com"]

[Event "Titled Tuesday Blitz June 13 Early 2023"]
[White "Bok, Benjamin"]
[Black "Haug, Havard"]
[WhiteFideId "1017063"]
[BlackFideId "1547887"]
[WhiteElo "2657"]
[BlackElo "2396"]
[Result "1-0"]
[Round "2"]
[TimeControl "180+2"]
[Date "2023.06.13"]
[WhiteClock "0:00:04"]
[BlackClock "0:00:06"]
[Board "23"]

1. d4 {[%clk 0:03:00]}  d5 {[%clk 0:02:58]} 2. c4 {[%clk 0:03:00]}  e6 {[%clk 0:02:57]} 3. Nc3 {[%clk 0:03:00]}  c5 {[%clk 0:02:57]} 4. cxd5 {[%clk 0:03:00]}  cxd4 {[%clk 0:02:56]} 5. Qa4+ {[%clk 0:02:59]}  Bd7 {[%clk 0:02:56]} 6. Qxd4 {[%clk 0:02:59]}  exd5 {[%clk 0:02:56]} 7. Qxd5 {[%clk 0:02:48]}  Nf6 {[%clk 0:02:54]} 8. Qd1 {[%clk 0:02:47]}  Bc5 {[%clk 0:02:54]} 9. Nf3 {[%clk 0:02:45]}  Qe7 {[%clk 0:02:53]} 10. Bg5 {[%clk 0:02:30]}  Nc6 {[%clk 0:02:26]} 11. e3 {[%clk 0:02:29]}  O-O {[%clk 0:02:23]} 12. Be2 {[%clk 0:02:26]}  Be6 {[%clk 0:02:11]} 13. O-O {[%clk 0:02:20]}  h6 {[%clk 0:02:11]} 14. Bxf6 {[%clk 0:02:14]}  Qxf6 {[%clk 0:02:12]} 15. Ne4 {[%clk 0:02:14]}  Qe7 {[%clk 0:02:12]} 16. Nxc5 {[%clk 0:02:14]}  Qxc5 {[%clk 0:02:13]} 17. Qa4 {[%clk 0:02:12]}  Rfd8 {[%clk 0:02:11]} 18. Rfc1 {[%clk 0:02:07]}  Qb6 {[%clk 0:02:11]} 19. Qb5 {[%clk 0:02:06]}  Qxb5 {[%clk 0:02:02]} 20. Bxb5 {[%clk 0:02:07]}  Ne7 {[%clk 0:02:02]} 21. Nd4 {[%clk 0:01:52]}  Bd5 {[%clk 0:01:50]} 22. Rc7 {[%clk 0:01:48]}  Kf8 {[%clk 0:01:50]} 23. a3 {[%clk 0:01:46]}  a6 {[%clk 0:01:49]} 24. Be2 {[%clk 0:01:44]}  Nc6 {[%clk 0:01:47]} 25. Nxc6 {[%clk 0:01:40]}  Bxc6 {[%clk 0:01:48]} 26. Bf3 {[%clk 0:01:38]}  Bxf3 {[%clk 0:01:44]} 27. gxf3 {[%clk 0:01:39]}  Rd2 {[%clk 0:01:44]} 28. Rxb7 {[%clk 0:01:37]}  Rc8 {[%clk 0:01:44]} 29. b4 {[%clk 0:00:49]}  Rcc2 {[%clk 0:01:42]} 30. Rf1 {[%clk 0:00:48]}  Ra2 {[%clk 0:01:41]} 31. Ra7 {[%clk 0:00:48]}  Rxa3 {[%clk 0:01:31]} 32. Rc1 {[%clk 0:00:40]}  Kg8 {[%clk 0:00:56]} 33. Rcc7 {[%clk 0:00:20]}  Ra1+ {[%clk 0:00:48]} 34. Kg2 {[%clk 0:00:21]}  Raa2 {[%clk 0:00:49]} 35. Rxf7 {[%clk 0:00:20]}  Rxf2+ {[%clk 0:00:49]} 36. Kg3 {[%clk 0:00:21]}  Rg2+ {[%clk 0:00:49]} 37. Kf4 {[%clk 0:00:22]}  Ra4 {[%clk 0:00:42]} 38. Rfb7 {[%clk 0:00:16]}  Rg6 {[%clk 0:00:36]} 39. e4 {[%clk 0:00:11]}  Ra3 {[%clk 0:00:21]} 40. h4 {[%clk 0:00:10]}  h5 {[%clk 0:00:16]} 41. e5 {[%clk 0:00:07]}  Kh7 {[%clk 0:00:15]} 42. Ke4 {[%clk 0:00:06]}  Rg3 {[%clk 0:00:11]} 43. f4 {[%clk 0:00:06]}  Rae3+ {[%clk 0:00:08]} 44. Kf5 {[%clk 0:00:05]}  Ref3 {[%clk 0:00:07]} 45. e6 {[%clk 0:00:04]}  Rg4 {[%clk 0:00:07]} 46. e7 {[%clk 0:00:02]}  Rfxf4+ {[%clk 0:00:07]} 47. Ke6 {[%clk 0:00:03]}  Re4+ {[%clk 0:00:06]} 48. Kd7 {[%clk 0:00:03]}  Rd4+ {[%clk 0:00:06]} 49. Kc8 {[%clk 0:00:03]}  Rge4 {[%clk 0:00:06]} 50. Rd7 {[%clk 0:00:02]}  Rxb4 {[%clk 0:00:05]} 51. Rab7 {[%clk 0:00:02]}  Rbc4+ {[%clk 0:00:02]} 52. Kd8 {[%clk 0:00:02]}  a5 {[%clk 0:00:03]} 53. e8=Q {[%clk 0:00:03]}  Rc8+ {[%clk 0:00:02]} 54. Kxc8 {[%clk 0:00:02]}  Rxe8+ {[%clk 0:00:03]} 55. Kc7 {[%clk 0:00:03]}  Re5 {[%clk 0:00:04]} 56. Kd6 {[%clk 0:00:03]}  Re4 {[%clk 0:00:03]} 57. Rxg7+ {[%clk 0:00:03]}  Kh6 {[%clk 0:00:03]} 58. Rh7+ {[%clk 0:00:03]}  Kg6 {[%clk 0:00:04]} 59. Rbg7+ {[%clk 0:00:04]}  Kf6 {[%clk 0:00:04]} 60. Rf7+ {[%clk 0:00:04]}  Kg6 {[%clk 0:00:04]} 61. Rfg7+ {[%clk 0:00:03]}  Kf6 {[%clk 0:00:05]} 62. Rg8 {[%clk 0:00:03]}  Rd4+ {[%clk 0:00:04]} 63. Kc5 {[%clk 0:00:02]}  Rd1 {[%clk 0:00:05]} 64. Rxh5 {[%clk 0:00:02]}  Rc1+ {[%clk 0:00:05]} 65. Kb6 {[%clk 0:00:02]}  Rd1 {[%clk 0:00:06]} 66. Rh6+ {[%clk 0:00:02]}  Kf7 {[%clk 0:00:07]} 67. Rg5 {[%clk 0:00:02]}  a4 {[%clk 0:00:07]} 68. Rf5+ {[%clk 0:00:02]}  Kg7 {[%clk 0:00:07]} 69. Rc6 {[%clk 0:00:03]}  Rd4 {[%clk 0:00:07]} 70. Ra5 {[%clk 0:00:03]}  Rxh4 {[%clk 0:00:07]} 71. Ra7+ {[%clk 0:00:04]}  Kh8 {[%clk 0:00:06]} 72. Rc8# {[%clk 0:00:04]} 1-0


[Site "https://www.chess.com"]

[Event "Titled Tuesday Blitz June 13 Early 2023"]
[White "Kevlishvili, Robby"]
[Black "Sourath Biswas"]
[WhiteFideId "1040634"]
[BlackFideId "35091484"]
[WhiteElo "2572"]
[BlackElo "2171"]
[Result "0-1"]
[Round "2"]
[TimeControl "180+2"]
[Date "2023.06.13"]
[WhiteClock "0:00:02"]
[BlackClock "0:00:10"]
[Board "27"]

1. e4 {[%clk 0:03:00]}  c6 {[%clk 0:02:58]} 2. Nf3 {[%clk 0:02:59]}  d5 {[%clk 0:02:59]} 3. Nc3 {[%clk 0:03:00]}  Bg4 {[%clk 0:02:59]} 4. h3 {[%clk 0:02:59]}  Bxf3 {[%clk 0:02:59]} 5. Qxf3 {[%clk 0:03:00]}  e6 {[%clk 0:03:00]} 6. g3 {[%clk 0:03:00]}  Nd7 {[%clk 0:02:58]} 7. Bg2 {[%clk 0:03:00]}  Bc5 {[%clk 0:02:57]} 8. O-O {[%clk 0:03:00]}  Ne7 {[%clk 0:02:58]} 9. Rd1 {[%clk 0:02:58]}  d4 {[%clk 0:02:53]} 10. Nb1 {[%clk 0:02:38]}  Ne5 {[%clk 0:02:24]} 11. Qh5 {[%clk 0:02:34]}  d3 {[%clk 0:02:24]} 12. Qxe5 {[%clk 0:02:30]}  Bd4 {[%clk 0:02:24]} 13. Qh5 {[%clk 0:02:05]}  dxc2 {[%clk 0:02:24]} 14. Rf1 {[%clk 0:02:05]}  cxb1=Q {[%clk 0:02:23]} 15. Rxb1 {[%clk 0:02:06]}  O-O {[%clk 0:02:09]} 16. b4 {[%clk 0:02:05]}  Qb6 {[%clk 0:01:54]} 17. a4 {[%clk 0:02:01]}  Rad8 {[%clk 0:01:50]} 18. Qe2 {[%clk 0:01:38]}  a6 {[%clk 0:01:29]} 19. d3 {[%clk 0:01:29]}  Ng6 {[%clk 0:01:28]} 20. Kh2 {[%clk 0:01:27]}  Ne5 {[%clk 0:01:20]} 21. Rb3 {[%clk 0:01:26]}  c5 {[%clk 0:01:04]} 22. Ba3 {[%clk 0:01:18]}  a5 {[%clk 0:00:59]} 23. b5 {[%clk 0:01:16]}  Nc6 {[%clk 0:00:57]} 24. Qc2 {[%clk 0:01:02]}  Nb4 {[%clk 0:00:55]} 25. Qc4 {[%clk 0:00:52]}  Rc8 {[%clk 0:00:34]} 26. f4 {[%clk 0:00:38]}  e5 {[%clk 0:00:25]} 27. f5 {[%clk 0:00:29]}  Kh8 {[%clk 0:00:20]} 28. f6 {[%clk 0:00:20]}  gxf6 {[%clk 0:00:20]} 29. Bc1 {[%clk 0:00:20]}  Qe6 {[%clk 0:00:18]} 30. Bh6 {[%clk 0:00:20]}  Rg8 {[%clk 0:00:12]} 31. Qxe6 {[%clk 0:00:18]}  fxe6 {[%clk 0:00:13]} 32. Rxf6 {[%clk 0:00:18]}  Rg6 {[%clk 0:00:14]} 33. Rxg6 {[%clk 0:00:16]}  hxg6 {[%clk 0:00:15]} 34. Bf1 {[%clk 0:00:15]}  Kh7 {[%clk 0:00:14]} 35. Bg5 {[%clk 0:00:09]}  Rf8 {[%clk 0:00:14]} 36. Rb1 {[%clk 0:00:10]}  Rf2+ {[%clk 0:00:14]} 37. Bg2 {[%clk 0:00:10]}  Nxd3 {[%clk 0:00:14]} 38. h4 {[%clk 0:00:08]}  Rb2 {[%clk 0:00:13]} 39. Rf1 {[%clk 0:00:07]}  Rf2 {[%clk 0:00:12]} 40. Rd1 {[%clk 0:00:07]}  c4 {[%clk 0:00:13]} 41. Kh3 {[%clk 0:00:06]}  Rf7 {[%clk 0:00:10]} 42. Rh1 {[%clk 0:00:02]}  Nf2+ {[%clk 0:00:10]} 0-1


[Site "https://www.chess.com"]

[Event "Titled Tuesday Blitz June 13 Early 2023"]
[White "Atanasov, Anthony"]
[Black "Zhigalko, Sergei"]
[WhiteFideId "2623897"]
[BlackFideId "13502956"]
[WhiteElo "2328"]
[BlackElo "2626"]
[Result "0-1"]
[Round "2"]
[TimeControl "180+2"]
[Date "2023.06.13"]
[WhiteClock "0:00:27"]
[BlackClock "0:00:22"]
[Board "28"]

1. d4 {[%clk 0:03:00]}  Nf6 {[%clk 0:03:00]} 2. Nf3 {[%clk 0:02:54]}  e6 {[%clk 0:03:00]} 3. Bf4 {[%clk 0:02:54]}  b6 {[%clk 0:03:00]} 4. e3 {[%clk 0:02:52]}  Bb7 {[%clk 0:03:00]} 5. Nbd2 {[%clk 0:02:52]}  Nh5 {[%clk 0:03:00]} 6. Bg5 {[%clk 0:02:50]}  Be7 {[%clk 0:03:00]} 7. h4 {[%clk 0:02:51]}  h6 {[%clk 0:02:50]} 8. Bxe7 {[%clk 0:02:49]}  Qxe7 {[%clk 0:02:51]} 9. Bd3 {[%clk 0:02:49]}  d6 {[%clk 0:02:43]} 10. c3 {[%clk 0:02:44]}  Nf6 {[%clk 0:02:40]} 11. a4 {[%clk 0:02:38]}  a6 {[%clk 0:02:37]} 12. Qe2 {[%clk 0:02:37]}  Nbd7 {[%clk 0:02:37]} 13. Rg1 {[%clk 0:02:34]}  e5 {[%clk 0:02:37]} 14. e4 {[%clk 0:02:31]}  a5 {[%clk 0:02:01]} 15. O-O-O {[%clk 0:02:21]}  O-O-O {[%clk 0:02:00]} 16. Ba6 {[%clk 0:02:17]}  Rhe8 {[%clk 0:01:56]} 17. Bxb7+ {[%clk 0:02:13]}  Kxb7 {[%clk 0:01:57]} 18. Rge1 {[%clk 0:02:11]}  Nb8 {[%clk 0:01:48]} 19. Qd3 {[%clk 0:02:06]}  Qd7 {[%clk 0:01:44]} 20. dxe5 {[%clk 0:02:02]}  dxe5 {[%clk 0:01:41]} 21. Qxd7 {[%clk 0:02:03]}  Nbxd7 {[%clk 0:01:34]} 22. Nc4 {[%clk 0:01:59]}  Ng4 {[%clk 0:01:34]} 23. Re2 {[%clk 0:01:55]}  Nc5 {[%clk 0:01:34]} 24. Rxd8 {[%clk 0:01:46]}  Rxd8 {[%clk 0:01:35]} 25. Ncxe5 {[%clk 0:01:45]}  Nxe5 {[%clk 0:01:34]} 26. Nxe5 {[%clk 0:01:46]}  f6 {[%clk 0:01:35]} 27. Nf3 {[%clk 0:01:44]}  Nxa4 {[%clk 0:01:27]} 28. e5 {[%clk 0:01:43]}  fxe5 {[%clk 0:01:23]} 29. Nxe5 {[%clk 0:01:44]}  Nc5 {[%clk 0:01:20]} 30. Re3 {[%clk 0:01:32]}  a4 {[%clk 0:01:07]} 31. Kc2 {[%clk 0:01:31]}  b5 {[%clk 0:01:02]} 32. Nd3 {[%clk 0:01:29]}  Nxd3 {[%clk 0:00:44]} 33. Rxd3 {[%clk 0:01:30]}  Rxd3 {[%clk 0:00:44]} 34. Kxd3 {[%clk 0:01:31]}  c5 {[%clk 0:00:44]} 35. g4 {[%clk 0:01:22]}  Kc6 {[%clk 0:00:44]} 36. f4 {[%clk 0:01:22]}  Kd6 {[%clk 0:00:28]} 37. c4 {[%clk 0:00:50]}  b4 {[%clk 0:00:27]} 38. h5 {[%clk 0:00:46]}  Ke6 {[%clk 0:00:24]} 39. Kc2 {[%clk 0:00:37]}  Kf6 {[%clk 0:00:24]} 40. b3 {[%clk 0:00:36]}  a3 {[%clk 0:00:23]} 41. Kb1 {[%clk 0:00:34]}  g6 {[%clk 0:00:22]} 42. hxg6 {[%clk 0:00:35]}  Kxg6 {[%clk 0:00:22]} 43. Kc2 {[%clk 0:00:33]}  h5 {[%clk 0:00:22]} 44. f5+ {[%clk 0:00:30]}  Kg5 {[%clk 0:00:22]} 45. gxh5 {[%clk 0:00:30]}  Kxf5 {[%clk 0:00:22]} 46. h6 {[%clk 0:00:27]}  Kg6 {[%clk 0:00:22]} 47. h7 {[%clk 0:00:27]}  Kxh7 {[%clk 0:00:22]} 0-1


[Site "https://www.chess.com"]

[Event "Titled Tuesday Blitz June 13 Early 2023"]
[White "Aditya Mittal"]
[Black "Domingo Nunez, Alejandro"]
[WhiteFideId "35042025"]
[BlackFideId "22245561"]
[WhiteElo "2421"]
[BlackElo "2291"]
[Result "0-1"]
[Round "2"]
[TimeControl "180+2"]
[Date "2023.06.13"]
[WhiteClock "0:00:00"]
[BlackClock "0:00:55"]
[Board "29"]

1. d4 {[%clk 0:03:00]}  g6 {[%clk 0:02:59]} 2. e4 {[%clk 0:03:00]}  Bg7 {[%clk 0:03:00]} 3. c4 {[%clk 0:03:01]}  c6 {[%clk 0:03:01]} 4. Nc3 {[%clk 0:03:00]}  d6 {[%clk 0:03:01]} 5. Nf3 {[%clk 0:02:59]}  a6 {[%clk 0:03:00]} 6. Be3 {[%clk 0:02:53]}  b5 {[%clk 0:02:59]} 7. a3 {[%clk 0:02:53]}  Nd7 {[%clk 0:02:59]} 8. d5 {[%clk 0:02:36]}  Bb7 {[%clk 0:02:52]} 9. Nd4 {[%clk 0:02:29]}  cxd5 {[%clk 0:02:43]} 10. cxd5 {[%clk 0:02:28]}  Rc8 {[%clk 0:02:42]} 11. Be2 {[%clk 0:02:26]}  Ngf6 {[%clk 0:02:30]} 12. f3 {[%clk 0:02:26]}  Ne5 {[%clk 0:02:30]} 13. O-O {[%clk 0:02:09]}  O-O {[%clk 0:02:29]} 14. Rc1 {[%clk 0:02:08]}  Nc4 {[%clk 0:02:29]} 15. Bxc4 {[%clk 0:02:08]}  Rxc4 {[%clk 0:02:30]} 16. Na2 {[%clk 0:02:02]}  Qc7 {[%clk 0:02:15]} 17. Nb4 {[%clk 0:02:00]}  Rc8 {[%clk 0:02:12]} 18. Nbc6 {[%clk 0:01:56]}  Rxc1 {[%clk 0:02:12]} 19. Qxc1 {[%clk 0:01:55]}  e6 {[%clk 0:02:12]} 20. Nb4 {[%clk 0:00:33]}  Qxc1 {[%clk 0:02:09]} 21. Rxc1 {[%clk 0:00:30]}  Rxc1+ {[%clk 0:02:08]} 22. Bxc1 {[%clk 0:00:31]}  exd5 {[%clk 0:02:08]} 23. exd5 {[%clk 0:00:22]}  Nxd5 {[%clk 0:02:04]} 24. Ndc2 {[%clk 0:00:18]}  Nb6 {[%clk 0:01:42]} 25. Nd3 {[%clk 0:00:17]}  a5 {[%clk 0:01:38]} 26. Kf2 {[%clk 0:00:16]}  Nc4 {[%clk 0:01:38]} 27. b3 {[%clk 0:00:15]}  Ne5 {[%clk 0:01:38]} 28. Ke2 {[%clk 0:00:12]}  Bd5 {[%clk 0:01:36]} 29. Nxe5 {[%clk 0:00:08]}  dxe5 {[%clk 0:01:36]} 30. b4 {[%clk 0:00:07]}  Bc4+ {[%clk 0:01:34]} 31. Kf2 {[%clk 0:00:07]}  a4 {[%clk 0:01:34]} 32. Ne3 {[%clk 0:00:07]}  Bh6 {[%clk 0:01:34]} 33. h4 {[%clk 0:00:03]}  Kf8 {[%clk 0:01:34]} 34. g4 {[%clk 0:00:04]}  Bf4 {[%clk 0:01:33]} 35. Bd2 {[%clk 0:00:03]}  Be6 {[%clk 0:01:31]} 36. Bc3 {[%clk 0:00:04]}  Ke7 {[%clk 0:01:21]} 37. Ng2 {[%clk 0:00:04]}  Bh2 {[%clk 0:01:21]} 38. Ne3 {[%clk 0:00:03]}  f6 {[%clk 0:01:18]} 39. Nf1 {[%clk 0:00:03]}  Bf4 {[%clk 0:01:18]} 40. Ng3 {[%clk 0:00:04]}  Bc1 {[%clk 0:01:09]} 41. Ne2 {[%clk 0:00:04]}  Bxa3 {[%clk 0:01:03]} 42. g5 {[%clk 0:00:05]}  Bc4 {[%clk 0:01:03]} 43. gxf6+ {[%clk 0:00:05]}  Kxf6 {[%clk 0:01:04]} 44. f4 {[%clk 0:00:05]}  Bxe2 {[%clk 0:01:00]} 45. Kxe2 {[%clk 0:00:06]}  Bc1 {[%clk 0:01:00]} 46. fxe5+ {[%clk 0:00:04]}  Ke6 {[%clk 0:01:00]} 47. Kd3 {[%clk 0:00:04]}  Bf4 {[%clk 0:00:54]} 48. Ke4 {[%clk 0:00:04]}  Bg3 {[%clk 0:00:55]} 49. Ba1 {[%clk 0:00:03]}  Bxh4 {[%clk 0:00:53]} 50. Kd4 {[%clk 0:00:03]}  Be7 {[%clk 0:00:54]} 51. Bc3 {[%clk 0:00:02]}  h5 {[%clk 0:00:54]} 52. Ke4 {[%clk 0:00:00]}  h4 {[%clk 0:00:55]} 0-1


[Site "https://www.chess.com"]

[Event "Titled Tuesday Blitz June 13 Early 2023"]
[White "Nagare Kaivalya Sandip"]
[Black "Tari, Aryan"]
[WhiteFideId "25957929"]
[BlackFideId "1510045"]
[WhiteElo "2024"]
[BlackElo "2586"]
[Result "0-1"]
[Round "2"]
[TimeControl "180+2"]
[Date "2023.06.13"]
[WhiteClock "0:00:15"]
[BlackClock "0:00:32"]
[Board "30"]

1. e4 {[%clk 0:03:00]}  c6 {[%clk 0:02:54]} 2. d4 {[%clk 0:03:00]}  d5 {[%clk 0:02:55]} 3. e5 {[%clk 0:02:58]}  Bf5 {[%clk 0:02:53]} 4. Nd2 {[%clk 0:02:59]}  e6 {[%clk 0:02:53]} 5. Nb3 {[%clk 0:02:59]}  Nd7 {[%clk 0:02:53]} 6. Nf3 {[%clk 0:02:58]}  Qc7 {[%clk 0:02:53]} 7. h3 {[%clk 0:02:56]}  f6 {[%clk 0:02:35]} 8. Bd3 {[%clk 0:02:29]}  Bxd3 {[%clk 0:02:29]} 9. Qxd3 {[%clk 0:02:29]}  fxe5 {[%clk 0:02:29]} 10. dxe5 {[%clk 0:02:28]}  Nxe5 {[%clk 0:02:27]} 11. Nxe5 {[%clk 0:02:29]}  Qxe5+ {[%clk 0:02:28]} 12. Be3 {[%clk 0:02:29]}  Nf6 {[%clk 0:02:18]} 13. O-O-O {[%clk 0:02:29]}  Qe4 {[%clk 0:02:12]} 14. Qc3 {[%clk 0:02:14]}  Bb4 {[%clk 0:02:09]} 15. Qd4 {[%clk 0:02:02]}  Qxd4 {[%clk 0:02:08]} 16. Bxd4 {[%clk 0:02:03]}  Kf7 {[%clk 0:02:08]} 17. a3 {[%clk 0:02:00]}  Bd6 {[%clk 0:02:08]} 18. Rhe1 {[%clk 0:02:00]}  b6 {[%clk 0:02:04]} 19. Nd2 {[%clk 0:01:58]}  c5 {[%clk 0:02:00]} 20. Be5 {[%clk 0:01:57]}  Bxe5 {[%clk 0:01:53]} 21. Rxe5 {[%clk 0:01:58]}  Nd7 {[%clk 0:01:53]} 22. Re2 {[%clk 0:01:54]}  h6 {[%clk 0:01:41]} 23. Nc4 {[%clk 0:01:48]}  Rad8 {[%clk 0:01:33]} 24. Nd6+ {[%clk 0:01:36]}  Kf6 {[%clk 0:01:33]} 25. Nb5 {[%clk 0:01:35]}  a5 {[%clk 0:01:02]} 26. Nc7 {[%clk 0:01:32]}  Nf8 {[%clk 0:01:02]} 27. Rde1 {[%clk 0:01:29]}  Rd6 {[%clk 0:01:01]} 28. Ne8+ {[%clk 0:01:29]}  Ke7 {[%clk 0:01:01]} 29. Nxd6 {[%clk 0:01:30]}  Kxd6 {[%clk 0:01:02]} 30. f4 {[%clk 0:01:29]}  g6 {[%clk 0:01:03]} 31. g4 {[%clk 0:01:29]}  Rh7 {[%clk 0:01:03]} 32. f5 {[%clk 0:01:03]}  gxf5 {[%clk 0:01:04]} 33. gxf5 {[%clk 0:01:04]}  exf5 {[%clk 0:01:04]} 34. Re8 {[%clk 0:01:03]}  Rf7 {[%clk 0:01:01]} 35. Rd8+ {[%clk 0:01:03]}  Kc6 {[%clk 0:00:58]} 36. Ree8 {[%clk 0:01:00]}  Nd7 {[%clk 0:00:54]} 37. Re6+ {[%clk 0:00:58]}  Kc7 {[%clk 0:00:54]} 38. Rde8 {[%clk 0:00:59]}  f4 {[%clk 0:00:52]} 39. R6e7 {[%clk 0:00:53]}  Rf5 {[%clk 0:00:48]} 40. Rh7 {[%clk 0:00:49]}  f3 {[%clk 0:00:45]} 41. Re1 {[%clk 0:00:24]}  Rf6 {[%clk 0:00:37]} 42. Rg7 {[%clk 0:00:22]}  Kd6 {[%clk 0:00:36]} 43. Kd2 {[%clk 0:00:20]}  Ne5 {[%clk 0:00:36]} 44. Rf1 {[%clk 0:00:21]}  Nc4+ {[%clk 0:00:33]} 45. Kc3 {[%clk 0:00:18]}  Ne3 {[%clk 0:00:33]} 46. Rb1 {[%clk 0:00:16]}  f2 {[%clk 0:00:32]} 47. Kd3 {[%clk 0:00:15]} 0-1


[Site "https://www.chess.com"]